{"text_format":"1","workbook":"xlsx","n_sheets":4,"sheets":["Februari 2019","Keuzetabellen","Facturatie","Blad1"],"not_rendered":{"charts":0,"images":0,"macros":1,"external_links":1,"defined_names":11,"comments":1,"pivot_tables":0},"unopened":[],"bounds":{"document_bytes":16777216,"sheet_cells":100000,"rows_first":2000,"rows_last":500,"rows_between":2000,"halvings":0,"cell_chars":16384,"cell_head_chars":4096},"cells_cut":0,"cells_raw":0,"read":"whole","date_system":"1900"}

{"sheet":"Februari 2019","index":0,"n_rows":46,"n_cols":226,"rows_kept":46,"cut":false,"hidden":false,"merged":[[0,0,0,1],[1,0,2,1],[1,2,1,9],[3,0,3,1],[4,0,4,1],[39,0,39,1],[1,10,1,17],[34,0,34,1],[36,0,36,1],[21,0,21,1],[12,0,12,1],[5,0,5,1],[6,0,6,1],[7,0,7,1],[8,0,8,1],[10,0,10,1],[11,0,11,1],[13,0,13,1],[29,0,29,1],[31,0,31,1],[32,0,32,1],[37,0,37,1],[38,0,38,1],[1,18,1,25],[14,0,14,1],[16,0,16,1],[17,0,17,1],[18,0,18,1],[19,0,19,1],[33,0,33,1],[22,0,22,1],[23,0,23,1],[24,0,24,1],[26,0,26,1],[27,0,27,1],[28,0,28,1],[1,26,1,33],[1,34,1,41],[1,42,1,49],[1,218,1,225],[1,170,1,177],[1,178,1,185],[1,186,1,193],[1,194,1,201],[1,202,1,209],[1,210,1,217],[1,50,1,57],[1,58,1,65],[1,66,1,73],[42,0,42,1],[44,0,44,1],[43,0,43,1],[41,0,41,1],[1,162,1,169],[1,74,1,81],[1,82,1,89],[1,90,1,97],[1,98,1,105],[1,106,1,113],[1,114,1,121],[1,122,1,129],[1,130,1,137],[1,138,1,145],[1,146,1,153],[1,154,1,161]]}
["Maand"]
[null,null,"2019-02-01",null,null,null,null,null,null,null,"2019-02-02",null,null,null,null,null,null,null,"2019-02-03",null,null,null,null,null,null,null,"2019-02-04",null,null,null,null,null,null,null,"2019-02-05",null,null,null,null,null,null,null,"2019-02-06",null,null,null,null,null,null,null,"2019-02-07",null,null,null,null,null,null,null,"2019-02-08",null,null,null,null,null,null,null,"2019-02-09",null,null,null,null,null,null,null,"2019-02-10",null,null,null,null,null,null,null,"2019-02-11",null,null,null,null,null,null,null,"2019-02-12",null,null,null,null,null,null,null,"2019-02-13",null,null,null,null,null,null,null,"2019-02-14",null,null,null,null,null,null,null,"2019-02-15",null,null,null,null,null,null,null,"2019-02-16",null,null,null,null,null,null,null,"2019-02-17",null,null,null,null,null,null,null,"2019-02-18",null,null,null,null,null,null,null,"2019-02-19",null,null,null,null,null,null,null,"2019-02-20",null,null,null,null,null,null,null,"2019-02-21",null,null,null,null,null,null,null,"2019-02-22",null,null,null,null,null,null,null,"2019-02-23",null,null,null,null,null,null,null,"2019-02-24",null,null,null,null,null,null,null,"2019-02-25",null,null,null,null,null,null,null,"2019-02-26",null,null,null,null,null,null,null,"2019-02-27",null,null,null,null,null,null,null,"2019-02-28"]
[null,null,"Taak","Soort activiteit","Beschrijving","Type","Imputatienummer","uren","Overuren","Opmerkingen","Taak","Soort activiteit","Beschrijving","Type","Imputatienummer","uren","Overuren","Opmerkingen","Taak","Soort activiteit","Beschrijving","Type","Imputatienummer","uren","Overuren","Opmerkingen","Taak","Soort activiteit","Beschrijving","Type","Imputatienummer","uren","Overuren","Opmerkingen","Taak","Soort activiteit","Beschrijving","Type","Imputatienummer","uren","Overuren","Opmerkingen","Taak","Soort activiteit","Beschrijving","Type","Imputatienummer","uren","Overuren","Opmerkingen","Taak","Soort activiteit","Beschrijving","Type","Imputatienummer","uren","Overuren","Opmerkingen","Taak","Soort activiteit","Beschrijving","Type","Imputatienummer","uren","Overuren","Opmerkingen","Taak","Soort activiteit","Beschrijving","Type","Imputatienummer","uren","Overuren","Opmerkingen","Taak","Soort activiteit","Beschrijving","Type","Imputatienummer","uren","Overuren","Opmerkingen","Taak","Soort activiteit","Beschrijving","Type","Imputatienummer","uren","Overuren","Opmerkingen","Taak","Soort activiteit","Beschrijving","Type","Imputatienummer","uren","Overuren","Opmerkingen","Taak","Soort activiteit","Beschrijving","Type","Imputatienummer","uren","Overuren","Opmerkingen","Taak","Soort activiteit","Beschrijving","Type","Imputatienummer","uren","Overuren","Opmerkingen","Taak","Soort activiteit","Beschrijving","Type","Imputatienummer","uren","Overuren","Opmerkingen","Taak","Soort activiteit","Beschrijving","Type","Imputatienummer","uren","Overuren","Opmerkingen","Taak","Soort activiteit","Beschrijving","Type","Imputatienummer","uren","Overuren","Opmerkingen","Taak","Soort activiteit","Beschrijving","Type","Imputatienummer","uren","Overuren","Opmerkingen","Taak","Soort activiteit","Beschrijving","Type","Imputatienummer","uren","Overuren","Opmerkingen","Taak","Soort activiteit","Beschrijving","Type","Imputatienummer","uren","Overuren","Opmerkingen","Taak","Soort activiteit","Beschrijving","Type","Imputatienummer","uren","Overuren","Opmerkingen","Taak","Soort activiteit","Beschrijving","Type","Imputatienummer","uren","Overuren","Opmerkingen","Taak","Soort activiteit","Beschrijving","Type","Imputatienummer","uren","Overuren","Opmerkingen","Taak","Soort activiteit","Beschrijving","Type","Imputatienummer","uren","Overuren","Opmerkingen","Taak","Soort activiteit","Beschrijving","Type","Imputatienummer","uren","Overuren","Opmerkingen","Taak","Soort activiteit","Beschrijving","Type","Imputatienummer","uren","Overuren","Opmerkingen","Taak","Soort activiteit","Beschrijving","Type","Imputatienummer","uren","Overuren","Opmerkingen","Taak","Soort activiteit","Beschrijving","Type","Imputatienummer","uren","Overuren","Opmerkingen"]
[null,null,null,null,null,null,null,null,null,null,null,null,null,null,null,null,null,null,null,null,null,null,null,null,null,null,null,null,null,null,null,null,null,null,null,null,null,null,null,null,null,null,null,null,null,null,null,null,null,null,null,null,null,null,null,null,null,null,null,null,null,null,null,null,null,null,null,null,null,null,null,null,null,null,null,null,null,null,null,null,null,null,null,null,null,null,null,null,null,null,"oliestaalname",null,null,null,null,null,null,null,null,null,null,null,null,null,null,null,null,null,null,null,null,null,null,null,null,null,null,null,null,null,null,null,null,null,null,null,null,null,null,null,null,null,null,null,null,null,null,null,null,null,null,null,null,null,null,null,"Inductie",null,null,null,null,null,null,null,null,null,null,null,null,null,null,null,null,null,null,null,null,null,null,null,"Surveillance system"]
[null,null,null,null,null,null,null,null,null,null,null,null,null,null,null,null,null,null,null,null,null,null,null,null,null,null,null,null,null,null,null,null,null,null,null,null,null,null,null,null,null,null,null,null,null,null,null,null,null,null,null,null,null,null,null,null,null,null,null,null,null,null,null,null,null,null,null,null,null,null,null,null,null,null,null,null,null,null,null,null,null,null,null,null,null,null,null,null,null,null,"EPC-O&M",null,null,null,null,null,null,null,null,null,null,null,null,null,null,null,null,null,null,null,null,null,null,null,null,null,null,null,null,null,null,null,null,null,null,null,null,null,null,null,null,null,null,null,null,null,null,null,null,null,null,null,null,null,null,null,"Cleaning",null,null,null,null,null,null,null,"O&M"]
[null,null,null,null,null,null,null,null,null,null,null,null,null,null,null,null,null,null,null,null,null,null,null,null,null,null,null,null,null,null,null,null,null,null,null,null,null,null,null,null,null,null,null,null,null,null,null,null,null,null,null,null,null,null,null,null,null,null,null,null,null,null,null,null,null,null,null,null,null,null,null,null,null,null,null,null,null,null,null,null,null,null,null,null,null,null,null,null,null,null,"herstellen fan cooler",null,null,null,null,null,null,null,"SF6-lek oplossen",null,null,null,null,null,null,null,null,null,null,null,null,null,null,null,null,null,null,null,null,null,null,null,null,null,null,null,null,null,null,null,null,null,null,null,null,null,null,null,"GIS MM",null,null,null,null,null,null,null,"Vincotte",null,null,null,null,null,null,null,"Asfalt",null,null,null,null,null,null,null,null,null,null,null,null,null,null,null,null,null,null,null,null,null,null,null,null,null,null,null,null,null,null,null,null,null,null,null,null,null,null,null,"Vergunningen updaten",null,null,null,null,null,null,null,"WM Diesel"]
[null,null,null,null,null,null,null,null,null,null,null,null,null,null,null,null,null,null,null,null,null,null,null,null,null,null,null,null,null,null,null,null,null,null,null,null,null,null,null,null,null,null,null,null,null,null,null,null,null,null,null,null,null,null,null,null,null,null,null,null,null,null,null,null,null,null,null,null,null,null,null,null,null,null,null,null,null,null,null,null,null,null,"Fan outdoor cooler",null,null,null,null,null,null,null,"Fire protection",null,null,null,null,null,null,null,"olie drainage TFO",null,null,null,null,null,null,null,null,null,null,null,null,null,null,null,null,null,null,null,null,null,null,null,null,null,null,null,null,null,null,null,null,null,null,null,null,null,null,null,"TFO MM",null,null,null,null,null,null,null,"Diesel MM",null,null,null,null,null,null,null,"Building MM",null,null,null,null,null,null,null,null,null,null,null,null,null,null,null,null,null,null,null,null,null,null,null,null,null,null,null,null,null,null,null,null,null,null,null,null,null,null,null,null,null,null,null,null,null,null,null,"WM CWC"]
[null,null,null,null,null,null,null,null,null,null,null,null,null,null,null,null,null,null,null,null,null,null,null,null,null,null,null,null,null,null,null,null,null,null,null,null,null,null,null,null,null,null,null,null,null,null,null,null,null,null,null,null,null,null,null,null,null,null,null,null,null,null,null,null,null,null,null,null,null,null,null,null,null,null,null,null,null,null,null,null,null,null,null,null,null,null,null,null,null,null,"IT elia",null,null,null,null,null,null,null,null,null,null,null,null,null,null,null,null,null,null,null,null,null,null,null,null,null,null,null,null,null,null,null,null,null,null,null,null,null,null,null,null,null,null,null,null,null,null,null,null,null,null,null,null,null,null,null,"CWC MM",null,null,null,null,null,null,null,"IT elia"]
[]
[null,"z",null,null,null,null,{"$f":"IFERROR(INDIRECT(F10),\"\")","v":""},null,null,null,null,null,null,null,{"$f":"IFERROR(INDIRECT(N10),\"\")","v":""},null,null,null,null,null,null,null,{"$f":"IFERROR(INDIRECT(V10),\"\")","v":""},null,null,null,null,"Algemene_activiteit","coordinatie werken - voorbereiding","Fixed",{"$f":"IFERROR(INDIRECT(AD10),\"\")","v":"ST-00309-01-01"},4,null,null,null,"Algemene_activiteit","coordinatie werken - uitvoering","Fixed",{"$f":"IFERROR(INDIRECT(AL10),\"\")","v":"ST-00309-01-01"},3,null,null,null,"Algemene_activiteit","handover project (labeling, verificatie AsBuilts, manuals, …)","Fixed",{"$f":"IFERROR(INDIRECT(AT10),\"\")","v":"ST-00309-01-01"},3.75,null,null,null,"Algemene_activiteit","planning en coordinatie werken ","Meeting",{"$f":"IFERROR(INDIRECT(BB10),\"\")","v":"ST-00309-01-03"},4,null,null,null,"Algemene_activiteit","peterschap post ","Fixed",{"$f":"IFERROR(INDIRECT(BJ10),\"\")","v":"ST-00309-01-01"},3,null,null,null,null,null,null,{"$f":"IFERROR(INDIRECT(BR10),\"\")","v":""},null,null,null,null,null,null,null,{"$f":"IFERROR(INDIRECT(BZ10),\"\")","v":""},null,null,null,"Fan outdoor cooler","Algemene_activiteit","coordinatie werken - voorbereiding","Fixed",{"$f":"IFERROR(INDIRECT(CH10),\"\")","v":"ST-00309-01-01"},2,null,"prep SP","herstellen fan cooler","Algemene_activiteit","coordinatie werken - uitvoering","Fixed",{"$f":"IFERROR(INDIRECT(CP10),\"\")","v":"ST-00309-01-01"},1.25,null,null,"SF6 lek","curatief_onderhoud","HV - AC switchgear","Variable",{"$f":"IFERROR(INDIRECT(CX10),\"\")","v":"ST-00309-02-01"},null,2,null,null,"Algemene_activiteit","planning en coordinatie werken ","Meeting",{"$f":"IFERROR(INDIRECT(DF10),\"\")","v":"ST-00309-01-03"},2.5,null,null,null,"Algemene_activiteit","administratie ","Fixed",{"$f":"IFERROR(INDIRECT(DN10),\"\")","v":"ST-00309-01-01"},4,null,null,null,null,null,null,{"$f":"IFERROR(INDIRECT(DV10),\"\")","v":""},null,null,null,null,null,null,null,{"$f":"IFERROR(INDIRECT(ED10),\"\")","v":""},null,null,null,null,"Algemene_activiteit","coordinatie werken - uitvoering","Fixed",{"$f":"IFERROR(INDIRECT(EL10),\"\")","v":"ST-00309-01-01"},1,null,null,"Geven inductie","Algemene_activiteit","veiligheidsopleidingen geven","Fixed",{"$f":"IFERROR(INDIRECT(ET10),\"\")","v":"ST-00309-01-01"},1.5,null,null,"Opleiding MSP",null,null,"Niet_Nemo_activiteit",{"$f":"IFERROR(INDIRECT(FB10),\"\")","v":"Elia-imp. Nummer"},7.75,null,null,"Opleiding MSP",null,null,"Niet_Nemo_activiteit",{"$f":"IFERROR(INDIRECT(FJ10),\"\")","v":"Elia-imp. Nummer"},7.75,null,null,null,"Algemene_activiteit","schakelen en veiligstellen ","Niet_Nemo_activiteit",{"$f":"IFERROR(INDIRECT(FR10),\"\")","v":"Elia-imp. Nummer"},2.5,null,"Schakelen 150-385",null,null,null,null,{"$f":"IFERROR(INDIRECT(FZ10),\"\")","v":""},null,null,null,null,null,null,null,{"$f":"IFERROR(INDIRECT(GH10),\"\")","v":""},null,null,null,"Vergunningen updaten","Algemene_activiteit","coordinatie werken - uitvoering","Fixed",{"$f":"IFERROR(INDIRECT(GP10),\"\")","v":"ST-00309-01-01"},3,null,"Coördinatie werken  openstaande punte n vincotte","MAC extended ","Algemene_activiteit",null,"Niet_Nemo_activiteit",{"$f":"IFERROR(INDIRECT(GX10),\"\")","v":"Elia-imp. Nummer"},4.75,null,"MAC extended",null,"Algemene_activiteit","coordinatie werken - uitvoering","Fixed",{"$f":"IFERROR(INDIRECT(HF10),\"\")","v":"ST-00309-01-01"},5,null,null,"Weekly meetings","Algemene_activiteit","coordinatie werken - voorbereiding","Meeting",{"$f":"IFERROR(INDIRECT(HN10),\"\")","v":"ST-00309-01-03"},3]
[null,null,null,null,null,null,{"$f":"IFERROR(INDIRECT(F11),\"\")","v":""},null,null,null,null,null,null,null,{"$f":"IFERROR(INDIRECT(N11),\"\")","v":""},null,null,null,null,null,null,null,"",null,null,null,null,"Algemene_activiteit","coordinatie werken - uitvoering","Fixed","ST-00309-01-01",2,null,null,null,"Algemene_activiteit","coordinatie werken - voorbereiding","Fixed","ST-00309-01-01",2,null,null,null,"Algemene_activiteit","administratie ","Niet_Nemo_activiteit","Elia-imp. Nummer",null,null,null,null,"curatief_onderhoud","Building - site access and security","Fixed","ST-00309-01-01",2,null,null,null,null,null,null,"",null,null,null,null,null,null,null,"",null,null,null,null,null,null,null,"",null,null,null,null,"Algemene_activiteit","coordinatie werken - uitvoering","Fixed","ST-00309-01-01",2,null,"Engie","Fire protection","Algemene_activiteit","coordinatie werken - uitvoering","Fixed",{"$f":"IFERROR(INDIRECT(CP11),\"\")","v":"ST-00309-01-01"},1,null,null,null,"Algemene_activiteit","Incident analyse","Variable",{"$f":"IFERROR(INDIRECT(CX11),\"\")","v":"ST-00309-02-01"},3,null,"analyse en comm incident RB",null,"Algemene_activiteit","planning en coordinatie werken ","Fixed",{"$f":"IFERROR(INDIRECT(DF11),\"\")","v":"ST-00309-01-01"},2,null,null,null,"Algemene_activiteit","coordinatie werken - uitvoering","Fixed",{"$f":"IFERROR(INDIRECT(DN11),\"\")","v":"ST-00309-01-01"},3,null,"coördinatie WM en Engie",null,null,null,null,{"$f":"IFERROR(INDIRECT(DV11),\"\")","v":""},null,null,null,null,null,null,null,"",null,null,null,null,"Algemene_activiteit","coordinatie werken - voorbereiding","Fixed","ST-00309-01-01",2,null,null,"MM diesel","preventatief_onderhoud","auxiliary power supply ","Fixed",{"$f":"IFERROR(INDIRECT(ET11),\"\")","v":"ST-00309-01-01"},1,null,null,null,null,null,null,{"$f":"IFERROR(INDIRECT(FB11),\"\")","v":""},null,null,null,null,null,null,null,{"$f":"IFERROR(INDIRECT(FJ11),\"\")","v":""},null,null,null,null,"Algemene_activiteit","coordinatie werken - voorbereiding","Fixed",{"$f":"IFERROR(INDIRECT(FR11),\"\")","v":"ST-00309-01-01"},3,null,"WVB week 9",null,null,null,null,{"$f":"IFERROR(INDIRECT(FZ11),\"\")","v":""},null,null,null,null,null,null,null,{"$f":"IFERROR(INDIRECT(GH11),\"\")","v":""},null,null,null,null,"Algemene_activiteit","coordinatie werken - voorbereiding","Fixed","ST-00309-01-01",3,null,"voorbereiding WM + overlopen RAMS",null,"Algemene_activiteit","administratie ","Fixed","ST-00309-01-01",3,null,"inplannen TNP met correcte codes",null,"preventatief_onderhoud","auxiliary power supply ","Variable",{"$f":"IFERROR(INDIRECT(HF11),\"\")","v":"ST-00309-02-01"},null,5,"monthly dieseltest met alarmen nadien",null,"Algemene_activiteit","coordinatie werken - uitvoering","Fixed",{"$f":"IFERROR(INDIRECT(HN11),\"\")","v":"ST-00309-01-01"},2]
[null,null,null,null,null,null,"",null,null,null,null,null,null,null,"",null,null,null,null,null,null,null,"",null,null,null,null,"Algemene_activiteit","handover project (labeling, verificatie AsBuilts, manuals, …)","Fixed","ST-00309-01-01",1.75,null,null,null,"Algemene_activiteit","administratie ","Fixed","ST-00309-01-01",2.75,null,null,null,"Algemene_activiteit","handover project (labeling, verificatie AsBuilts, manuals, …)","Variable","ST-00309-02-01",null,2,null,null,"Algemene_activiteit","coordinatie werken - uitvoering","Variable","ST-00309-02-01",null,1.5,null,null,null,null,null,"",null,null,null,null,null,null,null,"",null,null,null,null,null,null,null,"",null,null,null,null,"curatief_onderhoud","Building - site access and security","Variable","ST-00309-02-01",1.75,null,"check fence detection nav alarm",null,"Algemene_activiteit","veiligheidsopleidingen geven","Fixed",{"$f":"IFERROR(INDIRECT(CP12),\"\")","v":"ST-00309-01-01"},1.5,null,"Inducite Thermoco",null,"curatief_onderhoud","HV - Interface transformer","Variable",{"$f":"IFERROR(INDIRECT(CX12),\"\")","v":"ST-00309-02-01"},1.5,null,"drain oil TFO L3",null,"Algemene_activiteit","coordinatie werken - uitvoering","Fixed",{"$f":"IFERROR(INDIRECT(DF12),\"\")","v":"ST-00309-01-01"},2,null,"Coördinatie open punten project",null,null,null,null,{"$f":"IFERROR(INDIRECT(DN12),\"\")","v":""},null,null,null,null,null,null,null,{"$f":"IFERROR(INDIRECT(DV12),\"\")","v":""},null,null,null,null,null,null,null,"",null,null,null,"GIS MM/ TFO MM","preventief_onderhoud",null,"Fixed","ST-00309-01-01",2,null,null,"diesel","Algemene_activiteit","coordinatie werken - uitvoering","Fixed",{"$f":"IFERROR(INDIRECT(ET12),\"\")","v":"ST-00309-01-01"},2,null,null,null,null,null,null,{"$f":"IFERROR(INDIRECT(FB12),\"\")","v":""},null,null,null,null,null,null,null,{"$f":"IFERROR(INDIRECT(FJ12),\"\")","v":""},null,null,null,null,"Algemene_activiteit","administratie ","Fixed",{"$f":"IFERROR(INDIRECT(FR12),\"\")","v":"ST-00309-01-01"},1.5,null,null,null,null,null,null,{"$f":"IFERROR(INDIRECT(FZ12),\"\")","v":""},null,null,null,null,null,null,null,{"$f":"IFERROR(INDIRECT(GH12),\"\")","v":""},null,null,null,null,"Algemene_activiteit","administratie ","Fixed","ST-00309-01-01",1.75,null,"voorbereiding equipe",null,null,null,null,"",null,null,null,null,"Algemene_activiteit","administratie ","Fixed",{"$f":"IFERROR(INDIRECT(HF12),\"\")","v":"ST-00309-01-01"},2.75,null,null,null,"Algemene_activiteit","administratie ","Fixed",{"$f":"IFERROR(INDIRECT(HN12),\"\")","v":"ST-00309-01-01"},2.75]
[null,null,null,null,null,null,{"$f":"IFERROR(INDIRECT(F13),\"\")","v":""},null,null,null,null,null,null,null,"",null,null,null,null,null,null,null,"",null,null,null,null,"Algemene_activiteit","handover project (labeling, verificatie AsBuilts, manuals, …)","Variable","ST-00309-02-01",null,1.5,"support project Siemens",null,"Algemene_activiteit","handover project (labeling, verificatie AsBuilts, manuals, …)","Variable","ST-00309-02-01",null,1,null,null,null,null,null,"",null,null,null,null,"Algemene_activiteit","coordinatie werken - uitvoering","Fixed","ST-00309-01-01",1.75,null,null,null,null,null,null,"",null,null,null,null,null,null,null,"",null,null,null,null,null,null,null,"",null,null,null,null,"Algemene_activiteit","planning en coordinatie werken ","Meeting","ST-00309-01-03",2,null,"F2F","EPC-O&M","Algemene_activiteit","handover project (labeling, verificatie AsBuilts, manuals, …)","Meeting",{"$f":"IFERROR(INDIRECT(CP13),\"\")","v":"ST-00309-01-03"},2,null,null,null,"Algemene_activiteit","planning en coordinatie werken ","Fixed",{"$f":"IFERROR(INDIRECT(CX13),\"\")","v":"ST-00309-01-01"},3.25,null,null,null,null,null,null,{"$f":"IFERROR(INDIRECT(DF13),\"\")","v":""},null,null,null,null,null,null,null,{"$f":"IFERROR(INDIRECT(DN13),\"\")","v":""},null,null,null,null,null,null,null,{"$f":"IFERROR(INDIRECT(DV13),\"\")","v":""},null,null,null,null,null,null,null,"",null,null,null,null,"Algemene_activiteit","administratie ","Fixed","ST-00309-01-01",2.75,null,null,null,"Algemene_activiteit","coordinatie werken - voorbereiding","Fixed",{"$f":"IFERROR(INDIRECT(ET13),\"\")","v":"ST-00309-01-01"},1,null,null,null,null,null,null,{"$f":"IFERROR(INDIRECT(FB13),\"\")","v":""},null,null,null,null,null,null,null,{"$f":"IFERROR(INDIRECT(FJ13),\"\")","v":""},null,null,null,null,null,null,null,{"$f":"IFERROR(INDIRECT(FR13),\"\")","v":""},null,null,null,null,null,null,null,{"$f":"IFERROR(INDIRECT(FZ13),\"\")","v":""},null,null,null,null,null,null,null,{"$f":"IFERROR(INDIRECT(GH13),\"\")","v":""},null,null,null,null,null,null,null,"",null,null,null,null,null,null,null,"",null,null,null,null,null,null,null,{"$f":"IFERROR(INDIRECT(HF13),\"\")","v":""},null,null,null,null,null,null,null,{"$f":"IFERROR(INDIRECT(HN13),\"\")","v":""}]
[null,null,null,null,null,null,{"$f":"IFERROR(INDIRECT(F14),\"\")","v":""},null,null,null,null,null,null,null,{"$f":"IFERROR(INDIRECT(N14),\"\")","v":""},null,null,null,null,null,null,null,{"$f":"IFERROR(INDIRECT(V14),\"\")","v":""},null,null,null,null,null,null,null,{"$f":"IFERROR(INDIRECT(AD14),\"\")","v":""},null,null,null,null,null,null,null,{"$f":"IFERROR(INDIRECT(AL14),\"\")","v":""},null,null,null,null,null,null,null,{"$f":"IFERROR(INDIRECT(AT14),\"\")","v":""},null,null,null,null,null,null,null,{"$f":"IFERROR(INDIRECT(BB14),\"\")","v":""},null,null,null,null,null,null,null,{"$f":"IFERROR(INDIRECT(BJ14),\"\")","v":""},null,null,null,null,null,null,null,{"$f":"IFERROR(INDIRECT(BR14),\"\")","v":""},null,null,null,null,null,null,null,{"$f":"IFERROR(INDIRECT(BZ14),\"\")","v":""},null,null,null,null,"Algemene_activiteit","coordinatie werken - uitvoering","Variable","ST-00309-02-01",1,null,"Sven","SF6 alarm","incident _preparedness_and_procedures",null,"Variable","ST-00309-02-01",2,2,"voorbereiding herstelling",null,"Algemene_activiteit","interventie wacht","Variable","ST-00309-02-01",null,2.5,"intruder system",null,null,null,null,"",null,null,null,null,null,null,null,"",null,null,null,null,null,null,null,"",null,null,null,null,null,null,null,{"$f":"IFERROR(INDIRECT(ED14),\"\")","v":""},null,null,null,null,null,null,null,{"$f":"IFERROR(INDIRECT(EL14),\"\")","v":""},null,null,null,null,"Algemene_activiteit","administratie ","Fixed","ST-00309-01-01",2.25,null,null,null,null,null,null,"",null,null,null,null,null,null,null,"",null,null,null,null,null,null,null,"",null,null,null,null,null,null,null,"",null,null,null,null,null,null,null,"",null,null,null,null,null,null,null,{"$f":"IFERROR(INDIRECT(GP14),\"\")","v":""},null,null,null,null,null,null,null,{"$f":"IFERROR(INDIRECT(GX14),\"\")","v":""},null,null,null,null,null,null,null,"",null,null,null,null,null,null,null,""]
[null,null,null,null,null,null,"",null,null,null,null,null,null,null,"",null,null,null,null,null,null,null,"",null,null,null,null,null,null,null,"",null,null,null,null,null,null,null,"",null,null,null,null,null,null,null,"",null,null,null,null,null,null,null,"",null,null,null,null,null,null,null,"",null,null,null,null,null,null,null,"",null,null,null,null,null,null,null,"",null,null,null,null,null,null,null,"",null,null,null,null,null,null,null,{"$f":"IFERROR(INDIRECT(CP15),\"\")","v":""},null,null,null,null,null,null,null,{"$f":"IFERROR(INDIRECT(CX15),\"\")","v":""},null,null,null,null,null,null,null,{"$f":"IFERROR(INDIRECT(DF15),\"\")","v":""},null,null,null,null,null,null,null,{"$f":"IFERROR(INDIRECT(DN15),\"\")","v":""},null,null,null,null,null,null,null,{"$f":"IFERROR(INDIRECT(DV15),\"\")","v":""},null,null,null,null,null,null,null,"",null,null,null,null,null,null,null,"",null,null,null,null,null,null,null,{"$f":"IFERROR(INDIRECT(ET15),\"\")","v":""},null,null,null,null,null,null,null,{"$f":"IFERROR(INDIRECT(FB15),\"\")","v":""},null,null,null,null,null,null,null,{"$f":"IFERROR(INDIRECT(FJ15),\"\")","v":""},null,null,null,null,null,null,null,{"$f":"IFERROR(INDIRECT(FR15),\"\")","v":""},null,null,null,null,null,null,null,{"$f":"IFERROR(INDIRECT(FZ15),\"\")","v":""},null,null,null,null,null,null,null,{"$f":"IFERROR(INDIRECT(GH15),\"\")","v":""},null,null,null,null,null,null,null,"",null,null,null,null,null,null,null,"",null,null,null,null,null,null,null,{"$f":"IFERROR(INDIRECT(HF15),\"\")","v":""},null,null,null,null,null,null,null,{"$f":"IFERROR(INDIRECT(HN15),\"\")","v":""}]
[null,"y",null,"Algemene_activiteit","handover project (labeling, verificatie AsBuilts, manuals, …)","Fixed",{"$f":"IFERROR(INDIRECT(F16),\"\")","v":"ST-00309-01-01"},4,null,null,null,null,null,null,"",null,null,null,null,null,null,null,"",null,null,null,null,null,null,null,"",null,null,null,null,"curatief_onderhoud","C&P -  AC ","Fixed","ST-00309-01-01",2,null,null,null,"Algemene_activiteit","handover project (labeling, verificatie AsBuilts, manuals, …)","Fixed","ST-00309-01-01",6.75,null,null,null,"curatief_onderhoud","C&P -  AC ","Fixed","ST-00309-01-01",3,null,null,null,"curatief_onderhoud","C&P -  AC ","Fixed","ST-00309-01-01",1,null,null,null,null,null,null,"",null,null,null,null,null,null,null,"",null,null,null,null,null,null,null,"",null,null,null,"Oliestaalname","Algemene_activiteit",null,"Niet_Nemo_activiteit",{"$f":"IFERROR(INDIRECT(CP16),\"\")","v":"Elia-imp. Nummer"},7.75,null,null,"SF6 lek","curatief_onderhoud","HV - AC switchgear","Variable","ST-00309-02-01",null,2,null,null,"Algemene_activiteit","Incident analyse","Variable","ST-00309-02-01",2,null,"analyse op OTS",null,"Algemene_activiteit","handover project (labeling, verificatie AsBuilts, manuals, …)","Variable",{"$f":"IFERROR(INDIRECT(DN16),\"\")","v":"ST-00309-02-01"},7,null,"Algemene set-up site, IP telefonie,…",null,null,null,null,{"$f":"IFERROR(INDIRECT(DV16),\"\")","v":""},null,null,null,null,null,null,null,"",null,null,null,null,"Algemene_activiteit","interventie wacht","Variable","ST-00309-02-01",null,1.75,"fout inbraaksysteem",null,"Algemene_activiteit","coordinatie werken - uitvoering","Fixed","ST-00309-01-01",3.75,null,null,null,"curatief_onderhoud","Building - site access and security","Variable",{"$f":"IFERROR(INDIRECT(FB16),\"\")","v":"ST-00309-02-01"},2.5,2.5,"problemen met inbraakalarm/ schuifpoort",null,"Algemene_activiteit","coordinatie werken - uitvoering","Fixed",{"$f":"IFERROR(INDIRECT(FJ16),\"\")","v":"ST-00309-01-01"},2,1,"Organisatie site, toegang, …",null,"Algemene_activiteit","handover project (labeling, verificatie AsBuilts, manuals, …)","Fixed",{"$f":"IFERROR(INDIRECT(FR16),\"\")","v":"ST-00309-01-01"},4,null,"verificatie werking CWC, HVAC",null,null,null,null,{"$f":"IFERROR(INDIRECT(FZ16),\"\")","v":""},null,null,null,null,null,null,null,{"$f":"IFERROR(INDIRECT(GH16),\"\")","v":""},null,null,null,null,null,null,null,"",null,null,null,null,null,null,null,"",null,null,null,null,null,null,null,{"$f":"IFERROR(INDIRECT(HF16),\"\")","v":""},null,null,null,null,null,null,null,{"$f":"IFERROR(INDIRECT(HN16),\"\")","v":""}]
[null,null,null,"Algemene_activiteit","schakelen en veiligstellen ","Fixed","ST-00309-01-01",2,null,null,null,null,null,null,"",null,null,null,null,null,null,null,"",null,null,null,null,null,null,null,"",null,null,null,null,"preventatief_onderhoud","CWC","Fixed","ST-00309-01-01",1,null,null,null,"Algemene_activiteit","coordinatie werken - voorbereiding","Fixed","ST-00309-01-01",1,null,null,null,"curatief_onderhoud","Building - site access and security","Fixed","ST-00309-01-01",2,null,null,null,"Algemene_activiteit","administratie ","Fixed","ST-00309-01-01",4,null,null,null,null,null,null,"",null,null,null,null,null,null,null,"",null,null,null,null,null,null,null,"",null,null,null,null,null,null,null,{"$f":"IFERROR(INDIRECT(CP17),\"\")","v":""},null,null,null,null,null,null,null,{"$f":"IFERROR(INDIRECT(CX17),\"\")","v":""},null,null,null,null,"Algemene_activiteit","handover project (labeling, verificatie AsBuilts, manuals, …)","Fixed","ST-00309-01-01",2.75,null,"contorle OTS op juistheid",null,null,null,null,{"$f":"IFERROR(INDIRECT(DN17),\"\")","v":""},null,null,null,null,null,null,null,{"$f":"IFERROR(INDIRECT(DV17),\"\")","v":""},null,null,null,null,null,null,null,"",null,null,null,null,null,null,null,null,null,null,null,null,"Algemene_activiteit","interventie wacht","Variable","ST-00309-02-01",1,null,"afhandeling interventie wacht",null,"Algemene_activiteit","coordinatie werken - uitvoering","Fixed",{"$f":"IFERROR(INDIRECT(FB17),\"\")","v":"ST-00309-01-01"},3,null,"WVG, HW, toegang site",null,"curatief_onderhoud","Building - site access and security","Variable",{"$f":"IFERROR(INDIRECT(FJ17),\"\")","v":"ST-00309-02-01"},2,null,"fout inbraakalarm",null,"Algemene_activiteit","algemene technische opleidingen krijgen (hoogwerker, stelling ,…)","Fixed","ST-00309-01-01",2,null,"wegwijsmaken Brecht",null,null,null,null,{"$f":"IFERROR(INDIRECT(FZ17),\"\")","v":""},null,null,null,null,null,null,null,{"$f":"IFERROR(INDIRECT(GH17),\"\")","v":""},null,null,null,null,null,null,null,"",null,null,null,null,null,null,null,"",null,null,null,null,null,null,null,{"$f":"IFERROR(INDIRECT(HF17),\"\")","v":""},null,null,null,null,null,null,null,{"$f":"IFERROR(INDIRECT(HN17),\"\")","v":""}]
[null,null,null,"curatief_onderhoud","C&P -  AC ","Variable","ST-00309-02-01",1,2,null,null,null,null,null,"",null,null,null,null,null,null,null,"",null,null,null,null,null,null,null,"",null,null,null,null,"Algemene_activiteit","handover project (labeling, verificatie AsBuilts, manuals, …)","Fixed","ST-00309-01-01",4.75,null,null,null,"Algemene_activiteit","handover project (labeling, verificatie AsBuilts, manuals, …)","Variable","ST-00309-02-01",1,null,null,null,"Algemene_activiteit","handover project (labeling, verificatie AsBuilts, manuals, …)","Fixed","ST-00309-01-01",2.75,null,null,null,"Algemene_activiteit","handover project (labeling, verificatie AsBuilts, manuals, …)","Fixed","ST-00309-01-01",2,null,null,null,null,null,null,"",null,null,null,null,null,null,null,"",null,null,null,null,null,null,null,"",null,null,null,null,null,null,null,{"$f":"IFERROR(INDIRECT(CP18),\"\")","v":""},null,null,null,null,null,null,null,{"$f":"IFERROR(INDIRECT(CX18),\"\")","v":""},null,null,null,null,"Algemene_activiteit","handover project (labeling, verificatie AsBuilts, manuals, …)","Fixed","ST-00309-01-01",3,null,"IP telfonie,…",null,null,null,null,{"$f":"IFERROR(INDIRECT(DN18),\"\")","v":""},null,null,null,null,null,null,null,{"$f":"IFERROR(INDIRECT(DV18),\"\")","v":""},null,null,null,null,null,null,null,"",null,null,null,null,null,null,null,"",null,null,null,null,"Algemene_activiteit","Incident analyse","Variable",{"$f":"IFERROR(INDIRECT(ET18),\"\")","v":"ST-00309-02-01"},3,null,"analyse schakeling",null,"Algemene_activiteit","administratie ","Fixed",{"$f":"IFERROR(INDIRECT(FB18),\"\")","v":"ST-00309-01-01"},2.25,null,null,null,"Algemene_activiteit","algemene technische opleidingen krijgen (hoogwerker, stelling ,…)","Fixed",{"$f":"IFERROR(INDIRECT(FJ18),\"\")","v":"ST-00309-01-01"},2,null,"wegwijsmaken Brecht",null,"Algemene_activiteit","administratie ","Fixed",{"$f":"IFERROR(INDIRECT(FR18),\"\")","v":"ST-00309-01-01"},1,null,"Overlopen timesheet, gevolgde werken",null,null,null,null,{"$f":"IFERROR(INDIRECT(FZ18),\"\")","v":""},null,null,null,null,null,null,null,{"$f":"IFERROR(INDIRECT(GH18),\"\")","v":""},null,null,null,null,null,null,null,"",null,null,null,null,null,null,null,"",null,null,null,null,null,null,null,{"$f":"IFERROR(INDIRECT(HF18),\"\")","v":""},null,null,null,null,null,null,null,{"$f":"IFERROR(INDIRECT(HN18),\"\")","v":""}]
[null,null,null,null,null,null,"",null,null,null,null,null,null,null,"",null,null,null,null,null,null,null,"",null,null,null,null,null,null,null,"",null,null,null,null,"Algemene_activiteit","handover project (labeling, verificatie AsBuilts, manuals, …)","Variable","ST-00309-02-01",1,null,null,null,null,null,null,"",null,null,null,null,null,null,null,"",null,null,null,null,"Algemene_activiteit","handover project (labeling, verificatie AsBuilts, manuals, …)","Variable","ST-00309-02-01",null,1,null,null,null,null,null,"",null,null,null,null,null,null,null,"",null,null,null,null,null,null,null,"",null,null,null,null,null,null,null,{"$f":"IFERROR(INDIRECT(CP19),\"\")","v":""},null,null,null,null,null,null,null,{"$f":"IFERROR(INDIRECT(CX19),\"\")","v":""},null,null,null,null,"Algemene_activiteit","coordinatie werken - uitvoering","Variable",{"$f":"IFERROR(INDIRECT(DF19),\"\")","v":"ST-00309-02-01"},1,null,"afsluiten site",null,null,null,null,{"$f":"IFERROR(INDIRECT(DN19),\"\")","v":""},null,null,null,null,null,null,null,{"$f":"IFERROR(INDIRECT(DV19),\"\")","v":""},null,null,null,null,null,null,null,"",null,null,null,null,null,null,null,"",null,null,null,null,"Algemene_activiteit","coordinatie werken - uitvoering","Variable",{"$f":"IFERROR(INDIRECT(ET19),\"\")","v":"ST-00309-02-01"},null,1,"Afsluiten site, alarm wapenen,…",null,null,null,null,{"$f":"IFERROR(INDIRECT(FB19),\"\")","v":""},null,null,null,null,"Algemene_activiteit","handover project (labeling, verificatie AsBuilts, manuals, …)","Fixed",{"$f":"IFERROR(INDIRECT(FJ19),\"\")","v":"ST-00309-01-01"},1.75,null,null,null,"Algemene_activiteit","schakelen en veiligstellen ","Variable",{"$f":"IFERROR(INDIRECT(FR19),\"\")","v":"ST-00309-02-01"},null,2.5,"Aanwezigheid site nav CWC probleem UK",null,null,null,null,{"$f":"IFERROR(INDIRECT(FZ19),\"\")","v":""},null,null,null,null,null,null,null,{"$f":"IFERROR(INDIRECT(GH19),\"\")","v":""},null,null,null,null,null,null,null,"",null,null,null,null,null,null,null,"",null,null,null,null,null,null,null,{"$f":"IFERROR(INDIRECT(HF19),\"\")","v":""},null,null,null,null,null,null,null,{"$f":"IFERROR(INDIRECT(HN19),\"\")","v":""}]
[null,null,null,null,null,null,"",null,null,null,null,null,null,null,"",null,null,null,null,null,null,null,"",null,null,null,null,null,null,null,"",null,null,null,null,null,null,null,"",null,null,null,null,null,null,null,"",null,null,null,null,null,null,null,"",null,null,null,null,null,null,null,"",null,null,null,null,null,null,null,"",null,null,null,null,null,null,null,"",null,null,null,null,null,null,null,"",null,null,null,null,null,null,null,{"$f":"IFERROR(INDIRECT(CP20),\"\")","v":""},null,null,null,null,null,null,null,{"$f":"IFERROR(INDIRECT(CX20),\"\")","v":""},null,null,null,null,null,null,null,{"$f":"IFERROR(INDIRECT(DF20),\"\")","v":""},null,null,null,null,null,null,null,{"$f":"IFERROR(INDIRECT(DN20),\"\")","v":""},null,null,null,null,null,null,null,{"$f":"IFERROR(INDIRECT(DV20),\"\")","v":""},null,null,null,null,null,null,null,"",null,null,null,null,null,null,null,"",null,null,null,null,null,null,null,{"$f":"IFERROR(INDIRECT(ET20),\"\")","v":""},null,null,null,null,null,null,null,{"$f":"IFERROR(INDIRECT(FB20),\"\")","v":""},null,null,null,null,null,null,null,{"$f":"IFERROR(INDIRECT(FJ20),\"\")","v":""},null,null,null,null,null,null,null,{"$f":"IFERROR(INDIRECT(FR20),\"\")","v":""},null,null,null,null,null,null,null,{"$f":"IFERROR(INDIRECT(FZ20),\"\")","v":""},null,null,null,null,null,null,null,{"$f":"IFERROR(INDIRECT(GH20),\"\")","v":""},null,null,null,null,null,null,null,"",null,null,null,null,null,null,null,"",null,null,null,null,null,null,null,{"$f":"IFERROR(INDIRECT(HF20),\"\")","v":""},null,null,null,null,null,null,null,{"$f":"IFERROR(INDIRECT(HN20),\"\")","v":""}]
[null,"x",null,"Algemene_activiteit","handover project (labeling, verificatie AsBuilts, manuals, …)","Fixed","ST-00309-01-01",3,null,null,null,null,null,null,"",null,null,null,null,null,null,null,"",null,null,null,null,null,null,null,"",null,null,null,null,null,null,null,"",null,null,null,null,null,null,null,"",null,null,null,null,null,null,null,"",null,null,null,null,null,null,null,"",null,null,null,null,null,null,null,"",null,null,null,null,null,null,null,"",null,null,null,"Fan outdoor cooler","Algemene_activiteit","coordinatie werken - voorbereiding","Fixed",{"$f":"IFERROR(INDIRECT(CH21),\"\")","v":"ST-00309-01-01"},3,null,null,"IT-elia","Algemene_activiteit","coordinatie werken - uitvoering","Fixed",{"$f":"IFERROR(INDIRECT(CP21),\"\")","v":"ST-00309-01-01"},1.5,null,null,null,null,null,null,{"$f":"IFERROR(INDIRECT(CX21),\"\")","v":""},null,null,null,null,"Algemene_activiteit","Incident analyse","Variable",{"$f":"IFERROR(INDIRECT(DF21),\"\")","v":"ST-00309-02-01"},2,null,"analyse op OTS",null,"Algemene_activiteit","coordinatie werken - uitvoering","Fixed","ST-00309-01-01",3.25,null,"begeleiding Engie",null,null,null,null,{"$f":"IFERROR(INDIRECT(DV21),\"\")","v":""},null,null,null,null,null,null,null,"",null,null,null,null,null,null,null,"",null,null,null,null,null,null,null,{"$f":"IFERROR(INDIRECT(ET21),\"\")","v":""},null,null,null,null,null,null,null,{"$f":"IFERROR(INDIRECT(FB21),\"\")","v":""},null,null,null,null,null,null,null,{"$f":"IFERROR(INDIRECT(FJ21),\"\")","v":""},null,null,null,null,null,null,null,{"$f":"IFERROR(INDIRECT(FR21),\"\")","v":""},null,null,null,null,null,null,null,{"$f":"IFERROR(INDIRECT(FZ21),\"\")","v":""},null,null,null,null,null,null,null,{"$f":"IFERROR(INDIRECT(GH21),\"\")","v":""},null,null,null,null,null,null,null,"",null,null,null,null,null,null,null,"",null,null,null,null,null,null,null,{"$f":"IFERROR(INDIRECT(HF21),\"\")","v":""},null,null,null,null,null,null,null,{"$f":"IFERROR(INDIRECT(HN21),\"\")","v":""}]
[null,null,null,"Algemene_activiteit","schakelen en veiligstellen ","Fixed","ST-00309-01-01",2,null,null,null,null,null,null,"",null,null,null,null,null,null,null,"",null,null,null,null,null,null,null,"",null,null,null,null,null,null,null,"",null,null,null,null,null,null,null,"",null,null,null,null,null,null,null,"",null,null,null,null,null,null,null,"",null,null,null,null,null,null,null,"",null,null,null,null,null,null,null,"",null,null,null,"Set-up kitchen","curatief_onderhoud","Building, terain and other building services","Fixed",{"$f":"IFERROR(INDIRECT(CH22),\"\")","v":"ST-00309-01-01"},1,null,"Wisselen warm/koud water","herstellen fan cooler","Algemene_activiteit","coordinatie werken - uitvoering","Fixed",{"$f":"IFERROR(INDIRECT(CP22),\"\")","v":"ST-00309-01-01"},3,null,null,null,null,null,null,{"$f":"IFERROR(INDIRECT(CX22),\"\")","v":""},null,null,null,null,"Algemene_activiteit","handover project (labeling, verificatie AsBuilts, manuals, …)","Fixed",{"$f":"IFERROR(INDIRECT(DF22),\"\")","v":"ST-00309-01-01"},2.75,null,"contorle OTS op juistheid",null,"Algemene_activiteit","peterschap post ","Fixed","ST-00309-01-01",1.75,null,"organistatie sleutels",null,null,null,null,{"$f":"IFERROR(INDIRECT(DV22),\"\")","v":""},null,null,null,null,null,null,null,"",null,null,null,null,null,null,null,"",null,null,null,null,null,null,null,{"$f":"IFERROR(INDIRECT(ET22),\"\")","v":""},null,null,null,null,null,null,null,{"$f":"IFERROR(INDIRECT(FB22),\"\")","v":""},null,null,null,null,null,null,null,{"$f":"IFERROR(INDIRECT(FJ22),\"\")","v":""},null,null,null,null,null,null,null,{"$f":"IFERROR(INDIRECT(FR22),\"\")","v":""},null,null,null,null,null,null,null,{"$f":"IFERROR(INDIRECT(FZ22),\"\")","v":""},null,null,null,null,null,null,null,{"$f":"IFERROR(INDIRECT(GH22),\"\")","v":""},null,null,null,null,null,null,null,"",null,null,null,null,null,null,null,"",null,null,null,null,null,null,null,{"$f":"IFERROR(INDIRECT(HF22),\"\")","v":""},null,null,null,null,null,null,null,{"$f":"IFERROR(INDIRECT(HN22),\"\")","v":""}]
[null,null,null,"curatief_onderhoud","C&P -  AC ","Variable","ST-00309-02-01",1,2,null,null,null,null,null,"",null,null,null,null,null,null,null,"",null,null,null,null,null,null,null,"",null,null,null,null,null,null,null,"",null,null,null,null,null,null,null,"",null,null,null,null,null,null,null,"",null,null,null,null,null,null,null,"",null,null,null,null,null,null,null,"",null,null,null,null,null,null,null,"",null,null,null,"intruder system","Algemene_activiteit","Incident analyse","Variable",{"$f":"IFERROR(INDIRECT(CH23),\"\")","v":"ST-00309-02-01"},2.5,null,null,"Fire protection","Algemene_activiteit","coordinatie werken - uitvoering","Fixed",{"$f":"IFERROR(INDIRECT(CP23),\"\")","v":"ST-00309-01-01"},2,null,null,null,null,null,null,{"$f":"IFERROR(INDIRECT(CX23),\"\")","v":""},null,null,null,null,"Algemene_activiteit","handover project (labeling, verificatie AsBuilts, manuals, …)","Fixed",{"$f":"IFERROR(INDIRECT(DF23),\"\")","v":"ST-00309-01-01"},3,null,"IP telfonie,…",null,"Algemene_activiteit","coordinatie werken - voorbereiding","Niet_Nemo_activiteit",{"$f":"IFERROR(INDIRECT(DN23),\"\")","v":"Elia-imp. Nummer"},1,null,"WVB Elia",null,null,null,null,{"$f":"IFERROR(INDIRECT(DV23),\"\")","v":""},null,null,null,null,null,null,null,"",null,null,null,null,null,null,null,"",null,null,null,null,null,null,null,{"$f":"IFERROR(INDIRECT(ET23),\"\")","v":""},null,null,null,null,null,null,null,{"$f":"IFERROR(INDIRECT(FB23),\"\")","v":""},null,null,null,null,null,null,null,{"$f":"IFERROR(INDIRECT(FJ23),\"\")","v":""},null,null,null,null,null,null,null,{"$f":"IFERROR(INDIRECT(FR23),\"\")","v":""},null,null,null,null,null,null,null,{"$f":"IFERROR(INDIRECT(FZ23),\"\")","v":""},null,null,null,null,null,null,null,{"$f":"IFERROR(INDIRECT(GH23),\"\")","v":""},null,null,null,null,null,null,null,"",null,null,null,null,null,null,null,"",null,null,null,null,null,null,null,{"$f":"IFERROR(INDIRECT(HF23),\"\")","v":""},null,null,null,null,null,null,null,{"$f":"IFERROR(INDIRECT(HN23),\"\")","v":""}]
[null,null,null,"curatief_onderhoud","HVAC Building & airco","Variable","ST-00309-02-01",1,null,null,null,null,null,null,"",null,null,null,null,null,null,null,"",null,null,null,null,null,null,null,"",null,null,null,null,null,null,null,"",null,null,null,null,null,null,null,"",null,null,null,null,null,null,null,"",null,null,null,null,null,null,null,"",null,null,null,null,null,null,null,"",null,null,null,null,null,null,null,"",null,null,null,"Voorbereiding Elia",null,null,"Niet_Nemo_activiteit",{"$f":"IFERROR(INDIRECT(CH24),\"\")","v":"Elia-imp. Nummer"},1.25,null,null,null,"Algemene_activiteit","peterschap post ","Fixed",{"$f":"IFERROR(INDIRECT(CP24),\"\")","v":"ST-00309-01-01"},1.25,null,"Algemene operationele taken.",null,null,null,null,{"$f":"IFERROR(INDIRECT(CX24),\"\")","v":""},null,null,null,null,null,null,null,{"$f":"IFERROR(INDIRECT(DF24),\"\")","v":""},null,null,null,null,"Algemene_activiteit",null,"Niet_Nemo_activiteit",{"$f":"IFERROR(INDIRECT(DN24),\"\")","v":"Elia-imp. Nummer"},1,null,"verplaatsing",null,null,null,null,{"$f":"IFERROR(INDIRECT(DV24),\"\")","v":""},null,null,null,null,null,null,null,"",null,null,null,null,null,null,null,"",null,null,null,null,null,null,null,{"$f":"IFERROR(INDIRECT(ET24),\"\")","v":""},null,null,null,null,null,null,null,{"$f":"IFERROR(INDIRECT(FB24),\"\")","v":""},null,null,null,null,null,null,null,{"$f":"IFERROR(INDIRECT(FJ24),\"\")","v":""},null,null,null,null,null,null,null,{"$f":"IFERROR(INDIRECT(FR24),\"\")","v":""},null,null,null,null,null,null,null,{"$f":"IFERROR(INDIRECT(FZ24),\"\")","v":""},null,null,null,null,null,null,null,{"$f":"IFERROR(INDIRECT(GH24),\"\")","v":""},null,null,null,null,null,null,null,"",null,null,null,null,null,null,null,"",null,null,null,null,null,null,null,{"$f":"IFERROR(INDIRECT(HF24),\"\")","v":""},null,null,null,null,null,null,null,{"$f":"IFERROR(INDIRECT(HN24),\"\")","v":""}]
[null,null,null,null,null,null,"",null,null,null,null,null,null,null,"",null,null,null,null,null,null,null,"",null,null,null,null,null,null,null,"",null,null,null,null,null,null,null,"",null,null,null,null,null,null,null,"",null,null,null,null,null,null,null,"",null,null,null,null,null,null,null,"",null,null,null,null,null,null,null,"",null,null,null,null,null,null,null,"",null,null,null,null,null,null,null,{"$f":"IFERROR(INDIRECT(CH25),\"\")","v":""},null,null,null,null,"Algemene_activiteit","coordinatie werken - voorbereiding","Variable",{"$f":"IFERROR(INDIRECT(CP25),\"\")","v":"ST-00309-02-01"},null,0.5,"voorbereiding TFO L3",null,null,null,null,{"$f":"IFERROR(INDIRECT(CX25),\"\")","v":""},null,null,null,null,null,null,null,{"$f":"IFERROR(INDIRECT(DF25),\"\")","v":""},null,null,null,null,null,null,null,{"$f":"IFERROR(INDIRECT(DN25),\"\")","v":""},null,null,null,null,null,null,null,{"$f":"IFERROR(INDIRECT(DV25),\"\")","v":""},null,null,null,null,null,null,null,"",null,null,null,null,null,null,null,"",null,null,null,null,null,null,null,{"$f":"IFERROR(INDIRECT(ET25),\"\")","v":""},null,null,null,null,null,null,null,{"$f":"IFERROR(INDIRECT(FB25),\"\")","v":""},null,null,null,null,null,null,null,{"$f":"IFERROR(INDIRECT(FJ25),\"\")","v":""},null,null,null,null,null,null,null,{"$f":"IFERROR(INDIRECT(FR25),\"\")","v":""},null,null,null,null,null,null,null,{"$f":"IFERROR(INDIRECT(FZ25),\"\")","v":""},null,null,null,null,null,null,null,{"$f":"IFERROR(INDIRECT(GH25),\"\")","v":""},null,null,null,null,null,null,null,"",null,null,null,null,null,null,null,"",null,null,null,null,null,null,null,{"$f":"IFERROR(INDIRECT(HF25),\"\")","v":""},null,null,null,null,null,null,null,{"$f":"IFERROR(INDIRECT(HN25),\"\")","v":""}]
[null,"w",null,"Algemene_activiteit","handover project (labeling, verificatie AsBuilts, manuals, …)","Fixed","ST-00309-01-01",5,null,null,null,null,null,null,"",null,null,null,null,null,null,null,"",null,null,null,null,"Algemene_activiteit","coordinatie werken - voorbereiding","Fixed","ST-00309-01-01",2,null,null,null,"Algemene_activiteit","handover project (labeling, verificatie AsBuilts, manuals, …)","Fixed","ST-00309-01-01",4.75,null,null,null,"Algemene_activiteit","schakelen en veiligstellen ","Niet_Nemo_activiteit",{"$f":"IFERROR(INDIRECT(AT26),\"\")","v":"Elia-imp. Nummer"},null,null,null,null,"Algemene_activiteit","coordinatie werken - voorbereiding","Fixed",{"$f":"IFERROR(INDIRECT(BB26),\"\")","v":"ST-00309-01-01"},1,null,null,null,"Algemene_activiteit","administratie ","Fixed",{"$f":"IFERROR(INDIRECT(BJ26),\"\")","v":"ST-00309-01-01"},1,null,null,null,null,null,null,"",null,null,null,null,null,null,null,"",null,null,null,null,null,null,null,{"$f":"IFERROR(INDIRECT(CH26),\"\")","v":""},null,null,null,null,null,null,null,{"$f":"IFERROR(INDIRECT(CP26),\"\")","v":""},null,null,null,null,null,null,null,{"$f":"IFERROR(INDIRECT(CX26),\"\")","v":""},null,null,null,null,null,null,null,{"$f":"IFERROR(INDIRECT(DF26),\"\")","v":""},null,null,null,null,null,null,null,{"$f":"IFERROR(INDIRECT(DN26),\"\")","v":""},null,null,null,null,null,null,null,{"$f":"IFERROR(INDIRECT(DV26),\"\")","v":""},null,null,null,null,null,null,null,"",null,null,null,null,null,null,null,"",null,null,null,null,null,null,null,{"$f":"IFERROR(INDIRECT(ET26),\"\")","v":""},null,null,null,null,null,null,null,{"$f":"IFERROR(INDIRECT(FB26),\"\")","v":""},null,null,null,"Opname tellers voor AM","preventatief_onderhoud",null,"Fixed",{"$f":"IFERROR(INDIRECT(FJ26),\"\")","v":"ST-00309-01-01"},2,null,null,null,"Algemene_activiteit","schakelen en veiligstellen ","Niet_Nemo_activiteit",{"$f":"IFERROR(INDIRECT(FR26),\"\")","v":"Elia-imp. Nummer"},2.5,null,"Schakelen 150-385",null,null,null,null,{"$f":"IFERROR(INDIRECT(FZ26),\"\")","v":""},null,null,null,null,null,null,null,{"$f":"IFERROR(INDIRECT(GH26),\"\")","v":""},null,null,null,null,null,null,null,"",null,null,null,null,null,null,null,"",null,null,null,null,null,null,null,{"$f":"IFERROR(INDIRECT(HF26),\"\")","v":""},null,null,null,null,null,null,null,{"$f":"IFERROR(INDIRECT(HN26),\"\")","v":""}]
[null,null,null,"Algemene_activiteit","schakelen en veiligstellen ","Fixed","ST-00309-01-01",2,null,null,null,null,null,null,"",null,null,null,null,null,null,null,{"$f":"IFERROR(INDIRECT(V27),\"\")","v":""},null,null,null,null,"Algemene_activiteit","handover project (labeling, verificatie AsBuilts, manuals, …)","Fixed",{"$f":"IFERROR(INDIRECT(AD27),\"\")","v":"ST-00309-01-01"},5.75,null,null,null,"Algemene_activiteit","coordinatie werken - uitvoering","Fixed",{"$f":"IFERROR(INDIRECT(AL27),\"\")","v":"ST-00309-01-01"},2,null,null,null,"Algemene_activiteit","coordinatie werken - voorbereiding","Fixed","ST-00309-01-01",1,null,null,null,"curatief_onderhoud","Building - site access and security","Fixed","ST-00309-01-01",6.75,null,null,null,"Algemene_activiteit","coordinatie werken - voorbereiding","Fixed","ST-00309-01-01",2,null,null,null,null,null,null,{"$f":"IFERROR(INDIRECT(BR27),\"\")","v":""},null,null,null,null,null,null,null,{"$f":"IFERROR(INDIRECT(BZ27),\"\")","v":""},null,null,null,null,null,null,null,"",null,null,null,null,null,null,null,"",null,null,null,null,null,null,null,"",null,null,null,null,null,null,null,"",null,null,null,null,null,null,null,"",null,null,null,null,null,null,null,"",null,null,null,null,null,null,null,{"$f":"IFERROR(INDIRECT(ED27),\"\")","v":""},null,null,null,null,null,null,null,{"$f":"IFERROR(INDIRECT(EL27),\"\")","v":""},null,null,null,null,null,null,null,"",null,null,null,null,null,null,null,"",null,null,null,"Begeleiding JPS","Algemene_activiteit","handover project (labeling, verificatie AsBuilts, manuals, …)","Fixed","ST-00309-01-01",1.5,null,null,null,"Algemene_activiteit","coordinatie werken - uitvoering","Fixed","ST-00309-01-01",2,null,null,null,null,null,null,"",null,null,null,null,null,null,null,"",null,null,null,null,null,null,null,{"$f":"IFERROR(INDIRECT(GP27),\"\")","v":""},null,null,null,null,null,null,null,{"$f":"IFERROR(INDIRECT(GX27),\"\")","v":""},null,null,null,null,null,null,null,"",null,null,null,null,null,null,null,""]
[null,null,null,"curatief_onderhoud","C&P -  AC ","Variable",{"$f":"IFERROR(INDIRECT(F28),\"\")","v":"ST-00309-02-01"},1,2,null,null,null,null,null,"",null,null,null,null,null,null,null,"",null,null,null,null,"Algemene_activiteit","handover project (labeling, verificatie AsBuilts, manuals, …)","Variable","ST-00309-02-01",1,null,null,null,"preventatief_onderhoud","auxiliary power supply ","Fixed","ST-00309-01-01",1,null,null,null,"Algemene_activiteit","handover project (labeling, verificatie AsBuilts, manuals, …)","Fixed","ST-00309-01-01",3,null,null,null,null,null,null,{"$f":"IFERROR(INDIRECT(BB28),\"\")","v":""},null,null,null,null,"Algemene_activiteit","handover project (labeling, verificatie AsBuilts, manuals, …)","Fixed","ST-00309-01-01",4,null,null,null,null,null,null,"",null,null,null,null,null,null,null,"",null,null,null,null,null,null,null,"",null,null,null,null,null,null,null,"",null,null,null,null,null,null,null,"",null,null,null,null,null,null,null,"",null,null,null,null,null,null,null,"",null,null,null,null,null,null,null,"",null,null,null,null,null,null,null,"",null,null,null,null,null,null,null,"",null,null,null,null,null,null,null,"",null,null,null,null,null,null,null,"",null,null,null,"Herstelling schuifpoort","curatief_onderhoud","Building - site access and security","Variable","ST-00309-02-01",1,null,null,null,"Algemene_activiteit","handover project (labeling, verificatie AsBuilts, manuals, …)","Fixed","ST-00309-01-01",2.5,null,null,null,null,null,null,"",null,null,null,null,null,null,null,"",null,null,null,null,null,null,null,"",null,null,null,null,null,null,null,"",null,null,null,null,null,null,null,"",null,null,null,null,null,null,null,""]
[null,null,null,null,null,null,"",null,null,null,null,null,null,null,"",null,null,null,null,null,null,null,"",null,null,null,null,null,null,null,"",null,null,null,null,"Algemene_activiteit","handover project (labeling, verificatie AsBuilts, manuals, …)","Variable","ST-00309-02-01",null,0.5,null,null,null,null,null,"",null,null,null,null,null,null,null,"",null,null,null,null,"Algemene_activiteit","schakelen en veiligstellen ","Variable","ST-00309-02-01",0.5,null,null,null,null,null,null,"",null,null,null,null,null,null,null,"",null,null,null,null,null,null,null,"",null,null,null,null,null,null,null,"",null,null,null,null,null,null,null,"",null,null,null,null,null,null,null,"",null,null,null,null,null,null,null,"",null,null,null,null,null,null,null,"",null,null,null,null,null,null,null,"",null,null,null,null,null,null,null,"",null,null,null,null,null,null,null,"",null,null,null,null,null,null,null,"",null,null,null,"Heropstart Alarminstallatie","curatief_onderhoud","Building - site access and security","Variable","ST-00309-02-01",1,null,null,null,null,null,null,"",null,null,null,null,null,null,null,"",null,null,null,null,null,null,null,"",null,null,null,null,null,null,null,"",null,null,null,null,null,null,null,"",null,null,null,null,null,null,null,"",null,null,null,null,null,null,null,""]
[null,null,null,null,null,null,"",null,null,null,null,null,null,null,"",null,null,null,null,null,null,null,"",null,null,null,null,null,null,null,"",null,null,null,null,null,null,null,"",null,null,null,null,null,null,null,"",null,null,null,null,null,null,null,"",null,null,null,null,null,null,null,{"$f":"IFERROR(INDIRECT(BJ30),\"\")","v":""},null,null,null,null,null,null,null,"",null,null,null,null,null,null,null,"",null,null,null,null,null,null,null,"",null,null,null,null,null,null,null,"",null,null,null,null,null,null,null,"",null,null,null,null,null,null,null,"",null,null,null,null,null,null,null,"",null,null,null,null,null,null,null,"",null,null,null,null,null,null,null,"",null,null,null,null,null,null,null,"",null,null,null,null,null,null,null,"",null,null,null,null,null,null,null,"",null,null,null,null,"Algemene_activiteit","handover project (labeling, verificatie AsBuilts, manuals, …)","Fixed","ST-00309-01-01",2.25,null,null,null,null,null,null,"",null,null,null,null,null,null,null,"",null,null,null,null,null,null,null,"",null,null,null,null,null,null,null,"",null,null,null,null,null,null,null,"",null,null,null,null,null,null,null,"",null,null,null,null,null,null,null,""]
[null,"v",null,null,null,null,"",null,null,null,null,null,null,null,"",null,null,null,null,null,null,null,"",null,null,null,null,null,null,null,"",null,null,null,null,null,null,null,"",null,null,null,null,null,null,null,{"$f":"IFERROR(INDIRECT(AT31),\"\")","v":""},null,null,null,null,null,null,null,"",null,null,null,null,null,null,null,"",null,null,null,null,null,null,null,"",null,null,null,null,null,null,null,"",null,null,null,null,null,null,null,"",null,null,null,null,null,null,null,"",null,null,null,null,null,null,null,"",null,null,null,null,null,null,null,"",null,null,null,null,null,null,null,"",null,null,null,null,null,null,null,"",null,null,null,null,null,null,null,"",null,null,null,"Introductie site","Algemene_activiteit","algemene technische opleidingen krijgen (hoogwerker, stelling ,…)","Fixed","ST-00309-01-01",7.75,null,null,null,"Algemene_activiteit","algemene technische opleidingen krijgen (hoogwerker, stelling ,…)","Fixed","ST-00309-01-01",6.75,null,null,null,"Algemene_activiteit","algemene technische opleidingen krijgen (hoogwerker, stelling ,…)","Fixed","ST-00309-01-01",5.25,null,null,"Opname tellers voor AM","preventatief_onderhoud",null,"Fixed",{"$f":"IFERROR(INDIRECT(FJ31),\"\")","v":"ST-00309-01-01"},2,null,null,null,"Algemene_activiteit","administratie ","Fixed","ST-00309-01-01",2,null,null,null,null,null,null,"",null,null,null,null,null,null,null,"",null,null,null,null,null,null,null,"",null,null,null,null,null,null,null,"",null,null,null,null,null,null,null,"",null,null,null,null,null,null,null,""]
[null,null,null,null,null,null,"",null,null,null,null,null,null,null,"",null,null,null,null,null,null,null,"",null,null,null,null,null,null,null,"",null,null,null,null,null,null,null,"",null,null,null,null,null,null,null,"",null,null,null,null,null,null,null,"",null,null,null,null,null,null,null,"",null,null,null,null,null,null,null,"",null,null,null,null,null,null,null,"",null,null,null,null,null,null,null,"",null,null,null,null,null,null,null,"",null,null,null,null,null,null,null,"",null,null,null,null,null,null,null,"",null,null,null,null,null,null,null,"",null,null,null,null,null,null,null,"",null,null,null,null,null,null,null,"",null,null,null,null,null,null,null,"",null,null,null,"MM diesel","preventatief_onderhoud","auxiliary power supply ","Fixed","ST-00309-01-01",1,null,null,null,"curatief_onderhoud","Building - site access and security","Variable","ST-00309-02-01",2.5,1,"problemen met inbraakalarm/ schuifpoort","Herstelling schuifpoort","curatief_onderhoud","Building - site access and security","Variable",{"$f":"IFERROR(INDIRECT(FJ32),\"\")","v":"ST-00309-02-01"},1,null,null,null,"Algemene_activiteit",null,"Niet_Nemo_activiteit","Elia-imp. Nummer",2,null,null,null,null,null,null,"",null,null,null,null,null,null,null,"",null,null,null,null,null,null,null,"",null,null,null,null,null,null,null,"",null,null,null,null,null,null,null,"",null,null,null,null,null,null,null,""]
[null,null,null,null,null,null,"",null,null,null,null,null,null,null,"",null,null,null,null,null,null,null,"",null,null,null,null,null,null,null,"",null,null,null,null,null,null,null,"",null,null,null,null,null,null,null,"",null,null,null,null,null,null,null,"",null,null,null,null,null,null,null,"",null,null,null,null,null,null,null,"",null,null,null,null,null,null,null,"",null,null,null,null,null,null,null,"",null,null,null,null,null,null,null,"",null,null,null,null,null,null,null,"",null,null,null,null,null,null,null,"",null,null,null,null,null,null,null,"",null,null,null,null,null,null,null,"",null,null,null,null,null,null,null,"",null,null,null,null,null,null,null,"",null,null,null,null,"Algemene_activiteit","coordinatie werken - uitvoering","Variable","ST-00309-02-01",null,1,"Afsluiten site, alarm wapenen,…",null,null,null,null,"",null,null,null,null,"Algemene_activiteit","algemene technische opleidingen krijgen (hoogwerker, stelling ,…)","Fixed","ST-00309-01-01",4.75,null,null,null,"Algemene_activiteit","algemene technische opleidingen krijgen (hoogwerker, stelling ,…)","Fixed","ST-00309-01-01",3,null,null,null,null,null,null,"",null,null,null,null,null,null,null,"",null,null,null,null,null,null,null,"",null,null,null,null,null,null,null,"",null,null,null,null,null,null,null,"",null,null,null,null,null,null,null,""]
[null,null,null,null,null,null,"",null,null,null,null,null,null,null,"",null,null,null,null,null,null,null,"",null,null,null,null,null,null,null,"",null,null,null,null,null,null,null,"",null,null,null,null,null,null,null,"",null,null,null,null,null,null,null,"",null,null,null,null,null,null,null,"",null,null,null,null,null,null,null,"",null,null,null,null,null,null,null,"",null,null,null,null,null,null,null,"",null,null,null,null,null,null,null,"",null,null,null,null,null,null,null,"",null,null,null,null,null,null,null,"",null,null,null,null,null,null,null,"",null,null,null,null,null,null,null,"",null,null,null,null,null,null,null,"",null,null,null,null,null,null,null,"",null,null,null,null,null,null,null,"",null,null,null,null,null,null,null,"",null,null,null,null,null,null,null,"",null,null,null,null,null,null,null,"",null,null,null,null,null,null,null,"",null,null,null,null,null,null,null,"",null,null,null,null,null,null,null,"",null,null,null,null,null,null,null,"",null,null,null,null,null,null,null,"",null,null,null,null,null,null,null,""]
[null,null,null,null,null,null,"",null,null,null,null,null,null,null,"",null,null,null,null,null,null,null,"",null,null,null,null,null,null,null,"",null,null,null,null,null,null,null,"",null,null,null,null,null,null,null,"",null,null,null,null,null,null,null,"",null,null,null,null,null,null,null,"",null,null,null,null,null,null,null,"",null,null,null,null,null,null,null,"",null,null,null,null,null,null,null,"",null,null,null,null,null,null,null,"",null,null,null,null,null,null,null,"",null,null,null,null,null,null,null,"",null,null,null,null,null,null,null,"",null,null,null,null,null,null,null,"",null,null,null,null,null,null,null,"",null,null,null,null,null,null,null,"",null,null,null,null,null,null,null,"",null,null,null,null,null,null,null,"",null,null,null,null,null,null,null,"",null,null,null,null,null,null,null,"",null,null,null,null,null,null,null,"",null,null,null,null,null,null,null,"",null,null,null,null,null,null,null,"",null,null,null,null,null,null,null,"",null,null,null,null,null,null,null,"",null,null,null,null,null,null,null,""]
[null,"u",null,null,null,null,"",null,null,null,null,null,null,null,"",null,null,null,null,null,null,null,"",null,null,null,null,"Algemene_activiteit","handover project (labeling, verificatie AsBuilts, manuals, …)","Variable","ST-00309-02-01",6.75,null,"Verhuis materiaal Siemens",null,"Algemene_activiteit","handover project (labeling, verificatie AsBuilts, manuals, …)","Fixed","ST-00309-01-01",4,null,null,null,"Algemene_activiteit","handover project (labeling, verificatie AsBuilts, manuals, …)","Variable","ST-00309-02-01",7,null,null,null,"Algemene_activiteit","handover project (labeling, verificatie AsBuilts, manuals, …)","Variable","ST-00309-02-01",3.25,null,null,null,"Algemene_activiteit","interventie wacht","Variable","ST-00309-02-01",2.5,null,null,null,null,null,null,"",null,null,null,null,null,null,null,"",null,null,null,null,null,null,null,"",null,null,null,null,null,null,null,"",null,null,null,null,null,null,null,"",null,null,null,null,null,null,null,"",null,null,null,null,null,null,null,"",null,null,null,null,null,null,null,"",null,null,null,null,null,null,null,"",null,null,null,null,null,null,null,"",null,null,null,null,null,null,null,"",null,null,null,null,null,null,null,"",null,null,null,null,null,null,null,"",null,null,null,null,null,null,null,"",null,null,null,null,null,null,null,"",null,null,null,null,null,null,null,"",null,null,null,null,null,null,null,"",null,null,null,null,null,null,null,"",null,null,null,null,null,null,null,"",null,null,null,null,null,null,null,""]
[null,null,null,null,null,null,"",null,null,null,null,null,null,null,"",null,null,null,null,null,null,null,"",null,null,null,null,"Algemene_activiteit","coordinatie werken - uitvoering","Fixed","ST-00309-01-01",1,null,null,null,"Algemene_activiteit","handover project (labeling, verificatie AsBuilts, manuals, …)","Variable","ST-00309-02-01",3,null,null,null,"Algemene_activiteit","administratie ","Fixed","ST-00309-01-01",0.75,null,null,null,null,null,null,"",null,null,null,null,null,null,null,"",null,null,null,null,null,null,null,"",null,null,null,null,null,null,null,"",null,null,null,null,null,null,null,"",null,null,null,null,null,null,null,"",null,null,null,null,null,null,null,"",null,null,null,null,null,null,null,"",null,null,null,null,null,null,null,"",null,null,null,null,null,null,null,"",null,null,null,null,null,null,null,"",null,null,null,null,null,null,null,"",null,null,null,null,null,null,null,"",null,null,null,null,null,null,null,"",null,null,null,null,null,null,null,"",null,null,null,null,null,null,null,"",null,null,null,null,null,null,null,"",null,null,null,null,null,null,null,"",null,null,null,null,null,null,null,"",null,null,null,null,null,null,null,"",null,null,null,null,null,null,null,"",null,null,null,null,null,null,null,""]
[null,null,null,null,null,null,"",null,null,null,null,null,null,null,"",null,null,null,null,null,null,null,"",null,null,null,null,"Algemene_activiteit","handover project (labeling, verificatie AsBuilts, manuals, …)","Variable","ST-00309-02-01",1,null,"verhuis materiaal Siemens",null,"Algemene_activiteit","administratie ","Fixed","ST-00309-01-01",0.75,null,null,null,null,null,null,null,null,null,null,null,null,null,null,"",null,null,null,null,null,null,null,"",null,null,null,null,null,null,null,"",null,null,null,null,null,null,null,"",null,null,null,null,null,null,null,"",null,null,null,null,null,null,null,"",null,null,null,null,null,null,null,"",null,null,null,null,null,null,null,"",null,null,null,null,null,null,null,"",null,null,null,null,null,null,null,"",null,null,null,null,null,null,null,"",null,null,null,null,null,null,null,"",null,null,null,null,null,null,null,"",null,null,null,null,null,null,null,"",null,null,null,null,null,null,null,"",null,null,null,null,null,null,null,"",null,null,null,null,null,null,null,"",null,null,null,null,null,null,null,"",null,null,null,null,null,null,null,"",null,null,null,null,null,null,null,"",null,null,null,null,null,null,null,"",null,null,null,null,null,null,null,""]
[null,null,null,null,null,null,"",null,null,null,null,null,null,null,"",null,null,null,null,null,null,null,"",null,null,null,null,null,null,null,"",null,null,null,null,null,null,null,"",null,null,null,null,null,null,null,"",null,null,null,null,null,null,null,"",null,null,null,null,null,null,null,"",null,null,null,null,null,null,null,"",null,null,null,null,null,null,null,"",null,null,null,null,null,null,null,"",null,null,null,null,null,null,null,"",null,null,null,null,null,null,null,"",null,null,null,null,null,null,null,"",null,null,null,null,null,null,null,"",null,null,null,null,null,null,null,"",null,null,null,null,null,null,null,"",null,null,null,null,null,null,null,"",null,null,null,null,null,null,null,"",null,null,null,null,null,null,null,"",null,null,null,null,null,null,null,"",null,null,null,null,null,null,null,"",null,null,null,null,null,null,null,"",null,null,null,null,null,null,null,"",null,null,null,null,null,null,null,"",null,null,null,null,null,null,null,"",null,null,null,null,null,null,null,"",null,null,null,null,null,null,null,""]
[null,null,null,null,null,null,"",null,null,null,null,null,null,null,"",null,null,null,null,null,null,null,"",null,null,null,null,null,null,null,"",null,null,null,null,null,null,null,"",null,null,null,null,null,null,null,"",null,null,null,null,null,null,null,"",null,null,null,null,null,null,null,"",null,null,null,null,null,null,null,"",null,null,null,null,null,null,null,"",null,null,null,null,null,null,null,"",null,null,null,null,null,null,null,"",null,null,null,null,null,null,null,"",null,null,null,null,null,null,null,"",null,null,null,null,null,null,null,"",null,null,null,null,null,null,null,"",null,null,null,null,null,null,null,"",null,null,null,null,null,null,null,"",null,null,null,null,null,null,null,"",null,null,null,null,null,null,null,"",null,null,null,null,null,null,null,"",null,null,null,null,null,null,null,"",null,null,null,null,null,null,null,"",null,null,null,null,null,null,null,"",null,null,null,null,null,null,null,"",null,null,null,null,null,null,null,"",null,null,null,null,null,null,null,"",null,null,null,null,null,null,null,""]
[null,"t",null,null,null,null,"",null,null,null,null,null,null,null,"",null,null,null,null,null,null,null,"",null,null,null,null,null,null,null,"",null,null,null,null,null,null,null,"",null,null,null,null,null,null,null,"",null,null,null,null,null,null,null,"",null,null,null,null,null,null,null,"",null,null,null,null,null,null,null,"",null,null,null,null,null,null,null,"",null,null,null,null,null,null,null,"",null,null,null,null,null,null,null,"",null,null,null,null,null,null,null,"",null,null,null,"Weekly meeting","Algemene_activiteit","planning en coordinatie werken ","Meeting","ST-00309-01-03",1,null,null,null,null,null,null,"",null,null,null,null,null,null,null,"",null,null,null,null,null,null,null,"",null,null,null,null,null,null,null,"",null,null,null,null,null,null,null,"",null,null,null,null,null,null,null,"",null,null,null,null,null,null,null,"",null,null,null,null,null,null,null,"",null,null,null,null,null,null,null,"",null,null,null,null,null,null,null,"",null,null,null,null,null,null,null,"",null,null,null,null,null,null,null,"",null,null,null,null,null,null,null,"",null,null,null,null,null,null,null,""]
[null,null,null,null,null,null,"",null,null,null,null,null,null,null,"",null,null,null,null,null,null,null,"",null,null,null,"Creation of flow chart \"alarm at Herdersbrug\"","Algemene_activiteit","planning en coordinatie werken ","Fixed","ST-00309-01-01",2,null,null,null,null,null,null,"",null,null,null,null,null,null,null,"",null,null,null,"replacement SHU at Monthly meeting Siemens CS","Algemene_activiteit","planning en coordinatie werken ","Meeting","ST-00309-01-03",7.6,null,null,null,null,null,null,"",null,null,null,null,null,null,null,"",null,null,null,null,null,null,null,"",null,null,null,null,null,null,null,"",null,null,null,null,null,null,null,"",null,null,null,null,null,null,null,"",null,null,null,null,null,null,null,"",null,null,null,null,null,null,null,"",null,null,null,null,null,null,null,"",null,null,null,null,null,null,null,"",null,null,null,null,null,null,null,"",null,null,null,null,null,null,null,"",null,null,null,null,null,null,null,"",null,null,null,null,null,null,null,"",null,null,null,null,null,null,null,"",null,null,null,null,null,null,null,"",null,null,null,null,null,null,null,"",null,null,null,null,null,null,null,"",null,null,null,null,null,null,null,"",null,null,null,null,null,null,null,"",null,null,null,null,null,null,null,""]
[]
[]
[]
[null,null,null,null,null,null,"",null,null,null,null,null,null,null,"",null,null,null,null,null,null,null,"",null,null,null,null,null,null,null,"",null,null,null,null,null,null,null,"",null,null,null,null,null,null,null,"",null,null,null,null,null,null,null,"",null,null,null,null,null,null,null,"",null,null,null,null,null,null,null,"",null,null,null,null,null,null,null,"",null,null,null,null,null,null,null,{"$f":"IFERROR(INDIRECT(CH46),\"\")","v":""},null,null,null,null,null,null,null,{"$f":"IFERROR(INDIRECT(CP46),\"\")","v":""},null,null,null,null,null,null,null,{"$f":"IFERROR(INDIRECT(CX46),\"\")","v":""},null,null,null,null,null,null,null,{"$f":"IFERROR(INDIRECT(DF46),\"\")","v":""},null,null,null,null,null,null,null,{"$f":"IFERROR(INDIRECT(DN46),\"\")","v":""},null,null,null,null,null,null,null,{"$f":"IFERROR(INDIRECT(DV46),\"\")","v":""},null,null,null,null,null,null,null,"",null,null,null,null,null,null,null,"",null,null,null,null,null,null,null,{"$f":"IFERROR(INDIRECT(ET46),\"\")","v":""},null,null,null,null,null,null,null,{"$f":"IFERROR(INDIRECT(FB46),\"\")","v":""},null,null,null,null,null,null,null,{"$f":"IFERROR(INDIRECT(FJ46),\"\")","v":""},null,null,null,null,null,null,null,{"$f":"IFERROR(INDIRECT(FR46),\"\")","v":""},null,null,null,null,null,null,null,{"$f":"IFERROR(INDIRECT(FZ46),\"\")","v":""},null,null,null,null,null,null,null,{"$f":"IFERROR(INDIRECT(GH46),\"\")","v":""},null,null,null,null,null,null,null,"",null,null,null,null,null,null,null,"",null,null,null,null,null,null,null,{"$f":"IFERROR(INDIRECT(HF46),\"\")","v":""},null,null,null,null,null,null,null,{"$f":"IFERROR(INDIRECT(HN46),\"\")","v":""}]

{"sheet":"Keuzetabellen","index":1,"n_rows":58,"n_cols":6,"rows_kept":58,"cut":false,"hidden":false,"merged":[]}
[null,"Type","Imputatienummer"]
[null,"Fixed","ST-00309-01-01"]
[null,"Variable","ST-00309-02-01"]
[null,"Yearly_maintenance","ST-00309-01-02"]
[null,"Meeting","ST-00309-01-03"]
[null,"Niet_Nemo_activiteit","Elia-imp. Nummer"]
[]
[null,"Algemene_activiteit","preventatief_onderhoud","curatief_onderhoud","incident _preparedness_and_procedures","training_krijgen"]
[null,"administratie ","auxiliary power supply ","auxiliary power supply ","auxiliary power supply ","auxiliary power supply "]
[null,"algemene technische opleidingen krijgen (hoogwerker, stelling ,…)","Building - site access and security","Building - site access and security","Building - site access and security","Building - site access and security"]
[null,"Asset Management","Building, terain and other building services","Building, terain and other building services","Building, terain and other building services","Building, terain and other building services"]
[null,"beheer plannen ","C&P -  AC ","C&P -  AC ","C&P -  AC ","C&P -  AC "]
[null,"coordinatie werken - uitvoering","C&P - HVDC ","HVDC C&P","HVDC C&P","HVDC C&P"]
[null,"coordinatie werken - voorbereiding","C&P - HVDC IT systemen ","HVDC IT systemen ","HVDC IT systemen ","HVDC IT systemen "]
[null,"Incident analyse","CWC","CWC","CWC","CWC"]
[null,"peterschap post ","Firefighting","Firefighting","Firefighting","Firefighting"]
[null,"planning en coordinatie werken ","HV - AC switchgear","HV - AC switchgear","HV - AC switchgear","HV - AC switchgear"]
[null,"schakelen en veiligstellen ","HV - Converter towers","HV - Converter towers","HV - Converter towers","HV - Converter towers"]
[null,"tour post en kleine preventieve inspecties ","HV - DC switchgear ","HV - DC switchgear ","HV - DC switchgear ","HV - DC switchgear "]
[null,"veiligheidsopleidingen geven","HV - Interface transformer","HV - Interface transformer","HV - Interface transformer","HV - Interface transformer"]
[null,"veiligheidsopleidingen krijgen ","HVAC \"critical\" ","HVAC \"critical\" ","HVAC \"critical\" ","HVAC \"critical\" "]
[null,"interventie wacht","HVAC Building & airco","HVAC Building & airco","HVAC Building & airco","HVAC Building & airco"]
[null,"handover project (labeling, verificatie AsBuilts, manuals, …)",null,null,null,"NDS"]
[]
[]
[]
[null,"wie"]
[null,"naam 1"]
[null,"naam 2",null,"keuzetabel beschrijving"]
[null,"naam 3",null,"administratie "]
[null,"naam 4",null,"algemene technische opleidingen krijgen"]
[null,"naam 5",null,"Asset Management"]
[null,"naam 6",null,"beheer plannen "]
[null,"naam 7",null,"coordinatie werken - uitvoering"]
[null,"naam 8",null,"coordinatie werken - voorbereiding"]
[null,"naam 9",null,"Incident analyse"]
[null,"naam 10",null,"peterschap post "]
[null,null,null,"planning en coordinatie werken "]
[null,null,null,"schakelen en veiligstellen "]
[null,null,null,"tour post en kleine preventieve inspecties "]
[null,null,null,"veiligheidsopleidingen geven"]
[null,null,null,"veiligheidsopleidingen krijgen "]
[null,null,null,"handover project"]
[null,null,null,"auxiliary power supply "]
[null,null,null,"Building - site access and security"]
[null,null,null,"Building, terain and other building services"]
[null,null,null,"C&P -  AC "]
[null,null,null,"C&P - HVDC "]
[null,null,null,"C&P - HVDC IT systemen "]
[null,null,null,"CWC"]
[null,null,null,"Firefighting"]
[null,null,null,"HV - AC switchgear"]
[null,null,null,"HV - Converter towers"]
[null,null,null,"HV - DC switchgear "]
[null,null,null,"HV - Interface transformer"]
[null,null,null,"HVAC \"critical\" "]
[null,null,null,"HVAC Building & airco"]
[null,null,null,"NDS"]

{"sheet":"Facturatie","index":2,"n_rows":5,"n_cols":3,"rows_kept":5,"cut":false,"hidden":false,"merged":[]}
[null,{"$f":"IF('Februari 2019'!F16=\"fixed\",'Februari 2019'!H16,0)","v":4}]
[null,{"$f":"IF('Februari 2019'!F17=\"fixed\",'Februari 2019'!H17,0)","v":2}]
[null,{"$f":"IF('Februari 2019'!F18=\"fixed\",'Februari 2019'!H18,0)","v":0}]
[null,{"$f":"IF('Februari 2019'!F19=\"fixed\",'Februari 2019'!H19,0)","v":0},{"$f":"IF(B4=Variable,'Februari 2019'!H18,\"\")","v":""}]
[null,{"$f":"IF('Februari 2019'!F20=\"fixed\",'Februari 2019'!H20,0)","v":0}]

{"sheet":"Blad1","index":3,"n_rows":42,"n_cols":24,"rows_kept":42,"cut":false,"hidden":false,"merged":[]}
["Z",null,null,"y",null,null,"x",null,null,"w",null,null,null,"v",null,"u",null,null,"t",null,null,"Totaal        "]
["fixed","variabel","overuren","fixed","variabel","overuren","fixed","variabel","overuren","fixed","variabel","overuren","fixed","variabel","overuren","fixed","variabel","overuren","fixed","variabel","overuren","fixed","variabel","overuren"]
[{"$f":"SUM(A4:A51)","v":91.25},{"$f":"SUM(B4:B51)","v":9.25},{"$f":"SUM(C4:C51)","v":17.5},{"$f":"SUM(D4:D51)","v":63.75},{"$f":"SUM(E4:E51)","v":21.5},{"$f":"SUM(F4:F51)","v":12.75},{"$f":"SUM(G4:G51)","v":43.25},{"$f":"SUM(H4:H51)","v":6.5},{"$f":"SUM(I4:I51)","v":2.5},{"$f":"SUM(J4:J51)","v":51.5},{"$f":"SUM(K4:K51)","v":4.5},{"$f":"SUM(L4:L51)","v":2.5},{"$f":"SUM(M4:M51)","v":32.5},{"$f":"SUM(N4:N51)","v":3.5},2,6.5,23.5,0,2,0,0,{"$f":"SUMIF($A$2:$U$3,V2,$A$3:$U$3)","v":290.75},{"$f":"SUMIF($A$2:$U$3,W2,$A$3:$U$3)","v":68.75},37.25]
[4,3,2,4,2,2,3,2,2,5,1,2,7.75,2.5,1,4,6.75,null,2]
[3,1.75,5,2,7,1.75,3,1,0.5,2,1,0.5,6.75,1,1,1,7]
[3.75,1.5,2,6.75,2.5,2.5,1.5,2.5,null,4.75,1,null,5.25,null,null,0.75,3.25]
[3,1,1.5,3,1,2,3.25,1,null,1,0.5,null,2,null,null,0.75,2.5]
[2,2,1.5,1,2,1,2,null,null,1,1,null,2,null,null,null,3]
[1.25,null,1,3.75,1,1,1,null,null,2,null,null,1,null,null,null,1]
[4,null,2,2,1,2.5,3,null,null,2,null,null,4.75]
[1,null,2.5,4,3,null,2.75,null,null,5.75,null,null,3]
[1.5,null,null,2,1,null,1.75,null,null,2]
[3,null,null,1,1,null,2,null,null,1]
[5,null,null,1,null,null,3,null,null,6.75]
[2,null,null,2,null,null,1.25,null,null,2]
[2,null,null,4,null,null,5,null,null,1.5]
[2,null,null,2.75,null,null,2,null,null,2]
[2,null,null,3,null,null,4.75,null,null,1]
[1,null,null,2,null,null,1,null,null,3]
[2,null,null,4.75,null,null,1,null,null,4]
[3,null,null,2.75,null,null,2,null,null,2.5]
[2,null,null,2,null,null,null,null,null,2.25]
[1,null,null,3]
[3,null,null,2.25]
[3,null,null,2]
[3,null,null,1]
[2,null,null,1.75]
[1.75]
[2.75]
[1.5]
[2]
[2]
[2]
[1.5]
[1.75]
[2.75]
[2.75]
[1.75]
[3.25]
[2.75]
[1]
[2.25]